Cogmind - Beta 10.2 @@@ ROGUE MODE // 2021.01.08 @ 12:56:18 Player: PotlegsImprint Result: Self-destructed Performance ------------- Evolutions (1) 500 Regions Visited (2) 400 Robots Destroyed (7) 35 Value Destroyed (42) 42 Prototype IDs (0) 0 Alien Tech Used (0) 0 Bonus (0) 0 TOTAL SCORE: 977 Bonus ------- None Cogmind --------- Core Integrity 388/400 Matter 264/300 Energy 99/100 System Corruption 0% Temperature Cool (6) Movement Core (50) Location -9/Materials Parts ------- > --- POWER (2) -------- (None) > --- PROPULSION (3) --- Light Treads Light Treads > --- UTILITY (2) ------ Seismic Analyzer > --- WEAPON (2) ------- Light Assault Rifle > --- INVENTORY (4) ---- Improved Signal Interpreter Light Assault Rifle Grenade Launcher Mining Laser Peak State ------------ > --- POWER ------------ Light Ion Engine > --- PROPULSION ------- Light Treads Light Treads VTOL Module > --- UTILITY ---------- Improved Terrain Scanner Seismic Analyzer > --- WEAPON ----------- Light Assault Rifle Mining Laser > --- INVENTORY -------- Improved Signal Interpreter Medium Laser Light Assault Rifle [Rating: 10] Favorites ----------- Power Light Ion Engine Engine Light Ion Engine Propulsion Light Treads Treads Light Treads Flight Unit VTOL Module Utility Seismic Analyzer Device Improved Terrain Scanner Processor Seismic Analyzer Weapon Light Assault Rifle Ballistic Gun Light Assault Rifle Special Weapon Mining Laser Build | -11 -10 -9 ------- Run | Scr Mat Mat Slots Evolved 2 | . . 2 Power 1 | . . 1 Propulsion 1 | . . 1 Utility . | . . . Weapon . | . . . Parts Attached 12 | 6 1 5 Power 3 | . . 3 Engine 3 | . . 3 Core . | . . . Reactor . | . . . Propulsion 4 | 2 1 1 Treads 3 | 2 1 . Leg . | . . . Wheel . | . . . Hover . | . . . Flight 1 | . . 1 Utility 2 | 2 . . Device 1 | 1 . . Storage . | . . . Processor 1 | 1 . . Hackware . | . . . Protection . | . . . Artifact . | . . . Weapon 3 | 2 . 1 Energy Gun . | . . . Energy Cannon . | . . . Ballistic Gun 2 | 2 . . Ballistic Cannon . | . . . Launcher . | . . . Special Weapon 1 | . . 1 Impact Weapon . | . . . Slashing Weapon . | . . . Piercing Weapon . | . . . Special Melee Weapon . | . . . Unidentified Prototypes . | . . . Parts Lost 2 | . . 2 Power . | . . . Propulsion 1 | . . 1 Utility 1 | . . 1 Weapon . | . . . Highest Loss Streak 1 | . . 1 Average Slot Usage (%) 74 | . 85 71 Engine 5 | . . 7 Treads 23 | . 28 22 Flight 3 | . . 4 Device 11 | . 14 11 Processor 11 | . 14 11 Ballistic Gun 16 | . 28 12 Special Weapon 2 | . . 2 Naked Turns . | . . . Heaviest Build 5 | 3 3 5 Greatest Support 40 | 40 3 5 Greatest Overweight (x) . | . . . Average Overweight (x) . | . . . Largest Inventory Capacity 4 | 4 4 4 Average Capacity 4 | 4 4 4 Most Carried 4 | 3 4 4 Average Carried 2 | . 3 3 Final Capacity 4 | 4 4 4 Final Carried 4 | 3 4 4 Class Distribution -------------------- 100% | Mutant Dominant Class ---------------- Mutant | -10/Materials Mutant | -9/Materials Resources | -11 -10 -9 ----------- Run | Scr Mat Mat Matter Collected 319 | 310 . 9 Remotely . | . . . Salvage Created 211 | 202 . 9 Parts 10 | 9 . 1 Haulers Intercepted . | . . . Recyclers Shooed . | . . . Parts Field Recycled . | . . . Retrieved Matter . | . . . Parts Self-Destructed . | . . . Prevented . | . . . Kills | -11 -10 -9 ------- Run | Scr Mat Mat Combat Hostiles Destroyed . | . . . Classes Destroyed 3 | 2 . 1 Worker 1 | . . 1 Tunneler 5 | 5 . . Recycler 1 | 1 . . Best Kill Streak 6 | 6 . 1 Combat Bots Only . | . . . Max Kills in Single Turn 1 | 1 . 1 Gunslinging . | . . . Exploded . | . . . Melee . | . . . Uniques/NPCs Destroyed . | . . . Combat | -11 -10 -9 -------- Run | Scr Mat Mat Damage Taken 154 | . . 154 Core 12 | . . 12 Absorbed by Shields . | . . . Core Remaining (%) 100 | 100 100 . Volleys Fired 28 | 25 . 3 Largest 2 | 2 . 1 Hottest 100 | 40 . 100 Shots Fired 53 | 50 . 3 Gun 50 | 50 . . Cannon . | . . . Launcher . | . . . Special 3 | . . 3 Kinetic 50 | 50 . . Thermal 3 | . . 3 Explosive . | . . . Electromagnetic . | . . . Robot Hit Streak 6 | 6 . . Robot Miss Streak 3 | 3 . . Penetration Max . | . . . Secondary Targets . | . . . Shots Hit Robots 30 | 30 . . Core Hits 10 | 10 . . Critical Hits . | . . . Critical Kills . | . . . Critical Parts Destroyed . | . . . Melee Attacks . | . . . Impact . | . . . Slashing . | . . . Piercing . | . . . Sneak Attacks . | . . . Combat Hostiles . | . . . Follow-up Attacks . | . . . Damage Inflicted 255 | 250 . 5 Guns 250 | 250 . . Cannons . | . . . Explosions . | . . . Melee . | . . . Ramming 5 | . . 5 Kinetic 250 | 250 . . Thermal . | . . . Explosive . | . . . Electromagnetic . | . . . Impact . | . . . Slashing . | . . . Piercing . | . . . Highest Corruption . | . . . Average Corruption . | . . . Corruption Purged . | . . . Overload Shots . | . . . Overflow Damage . | . . . Projectiles . | . . . Explosions . | . . . Melee . | . . . Knockbacks . | . . . Impact . | . . . Kinetic . | . . . Secondary . | . . . Self-Inflicted Damage 2 | . . 2 Shots . | . . . Rammed 1 | . . 1 Targets Rammed 2 | . . 2 Kicked . | . . . Crushed 1 | . . 1 Highest Temperature 39 | . . 39 Average Temperature 15 | . . 15 Received Heat Transfer 42 | . . 42 Siege Activations . | . . . Robots Corrupted . | . . . Combat Hostiles . | . . . Parts Fried . | . . . Impact Corruptions . | . . . Robots Melted . | . . . Combat Hostiles . | . . . Parts Melted . | . . . Heat Transferred . | . . . Parts Sabotaged . | . . . Parts Stolen . | . . . Parts Stripped . | . . . Power Chain Reactions . | . . . Missiles Intercepted . | . . . Alert | -11 -10 -9 ------- Run | Scr Mat Mat Peak Influence 132 | 30 43 132 Initial 19 | . 19 17 Average 29 | 18 31 40 Maximum Alert Level . | . . . Low Security (%) 100 | 100 100 100 Level 1 . | . . . Level 2 . | . . . Level 3 . | . . . Level 4 . | . . . Level 5 . | . . . High Security . | . . . Max Security . | . . . Squads Dispatched 3 | . . 3 Investigation 2 | . . 2 Extermination . | . . . Reinforcement 1 | . . 1 Assault . | . . . Garrison . | . . . Intercept . | . . . Construction Impeded . | . . . Haulers Reinforced . | . . . Stealth | -11 -10 -9 --------- Run | Scr Mat Mat Distress Signals 2 | . . 2 Communications Jammed . | . . . Distress Signals . | . . . Times Spotted 12 | . . 12 Peak Tracking Total 10 | . . 10 Tactical Retreats 2 | . . 2 Traps | -11 -10 -9 ------- Run | Scr Mat Mat Traps Triggered 1 | . 1 . Indirectly . | . . . Trap Hack Attempts . | . . . Triggered . | . . . Disarmed . | . . . Reprogrammed . | . . . Reused . | . . . Traps Extracted . | . . . Installed . | . . . Triggered . | . . . Machines | -11 -10 -9 ---------- Run | Scr Mat Mat Machines Disabled . | . . . Max in Single Turn . | . . . Machines Sabotaged . | . . . Garrisons Compromised . | . . . Overloaded Fab Kills . | . . . Fab Network Shutdowns . | . . . Hacking | -11 -10 -9 --------- Run | Scr Mat Mat Machines Accessed 5 | . 2 3 Terminals 4 | . 2 2 Fabricators . | . . . Repair Stations . | . . . Recycling Units 1 | . . 1 Scanalyzers . | . . . Garrison Access . | . . . Total Hacks 16 | . 7 9 Successful 8 | . 4 4 Failed 8 | . 3 5 Catastrophic 1 | . . 1 Database Lockouts . | . . . Manual 10 | . 5 5 Terminals 14 | . 7 7 Fabricators . | . . . Repair Stations . | . . . Recycling Units 2 | . . 2 Scanalyzers . | . . . Garrison Access . | . . . Terminal Hacks 2 | . 2 . Terminal Index 1 | . 1 . Locate Traps 1 | . 1 . Fabricator Hacks . | . . . Repair Station Hacks . | . . . Recycling Unit Hacks 2 | . . 2 Report Inventory 1 | . . 1 Retrieve Components 1 | . . 1 Scanalyzer . | . . . Garrison Access Hacks . | . . . Unauthorized Hacks 4 | . 2 2 Terminals 4 | . 2 2 Track 4 | . 2 2 Fabricators . | . . . Repair Stations . | . . . Recycling Units . | . . . Scanalyzers . | . . . Garrison Access . | . . . Data Cores Recovered . | . . . Used . | . . . Hacking Detections 4 | . 2 2 Full Trace Events 3 | . 1 2 Feedback Events . | . . . Feedback Blocked . | . . . Robot Schematics Acquired . | . . . Robots Built . | . . . Matter . | . . . Time . | . . . Total Robot Build Rating . | . . . Part Schematics Acquired . | . . . Parts Built . | . . . Matter . | . . . Time . | . . . Total Part Build Rating . | . . . Parts Repaired . | . . . Time . | . . . Parts Recycled . | . . . Recycled Matter . | . . . Retrieved Matter . | . . . Retrieved Components 1 | . . 1 Parts Scanalyzed . | . . . Part Schematics Acquired . | . . . Parts Damaged . | . . . Bothacking | -11 -10 -9 ------------ Run | Scr Mat Mat Used RIF Installer . | . . . Robots Hacked . | . . . Non-combat . | . . . Combat . | . . . Robot Hacks Applied . | . . . Relay Couplers Released . | . . . Robots Rewired . | . . . Allies Hacked . | . . . Hacks Repelled . | . . . Allies | -11 -10 -9 -------- Run | Scr Mat Mat Total Allies . | . . . Largest Group . | . . . Highest-Rated Group . | . . . Highest-Rated Ally . | . . . Total Orders . | . . . Ally Attacks . | . . . Total Damage . | . . . Kills . | . . . Allies Corrupted . | . . . Allies Melted . | . . . Intel | -11 -10 -9 ------- Run | Scr Mat Mat Robot Analysis Total . | . . . Derelict Logs Recovered . | . . . Drone Launches . | . . . Drone Recoveries . | . . . Exploration | -11 -10 -9 ------------- Run | Scr Mat Mat Turns Passed 364 | 158 49 157 Spaces Moved 323 | 67 92 164 Core 195 | 24 92 79 Treads 43 | 43 . . Legs . | . . . Wheels . | . . . Hover . | . . . Flight 85 | . . 85 Fastest Speed 50 | 50 50 50 Average Speed 72 | 120 50 65 Slowest Speed 160 | 160 50 80 Overloaded Moves . | . . . Propulsion Burnouts . | . . . Robots Hopped 2 | . . 2 Cave-ins Triggered . | . . . Exploration Rate (%) 14 | 4 19 21 Regions Visited 2 Branch Regions . Pre-discovered Areas . | . . . Known Exits Taken . | . . . Unknown Exits Taken 2 | 1 1 . Scrap Searched . | . . . Spaces Dug 2 | . . 2 Terrain Destroyed 3 | . . 3 Melee . | . . . Projectile 3 | . . 3 AOE . | . . . Terrain Rammed . | . . . Walls Destroyed . | . . . Machines Disabled . | . . . Actions | -11 -10 -9 --------- Run | Scr Mat Mat Total 396 | 100 93 203 Wait 25 | . . 25 Move 317 | 66 91 160 Hop 2 | . . 2 Pick Up 5 | 3 1 1 Fast Attach 8 | 6 1 1 Attach 3 | . . 3 Detach 3 | . . 3 Swap 1 | . . 1 Drop 2 | . . 2 Fire 28 | 25 . 3 Melee . | . . . Ram 1 | . . 1 Kick . | . . . Crush 1 | . . 1 Escape Stasis . | . . . Rewire . | . . . Trap . | . . . Miscellaneous . | . . . Route ------- -11/Scrapyard -10/Materials -9/Materials History --------- Turn | Location | Event 9 | -11/Scrapyard | Discovered new exit (range 15) 159 | -11/Scrapyard | Entered Materials 206 | -10/Materials | Discovered new exit (range 6) 208 | -10/Materials | Entered another Materials area 208 | -9/Materials | Evolved 2 slots: Power x1, Propulsion x1 315 | -9/Materials | Build established: Mutant 365 | -9/Materials | Self-destructed Last Messages --------------- Investigation squad. 00335_ K-01 Serf collects debris. 00339_ Connecting with Terminal... >>Trojan(Track) Trojan loaded successfully. Testing... Tracking enabled and active. 00339_ ALERT: Suspicious activity at Terminal M011. Dispatching Investigation squad. 00341_ W-16 Scout sends out distress signal. 00346_ O-16 Technician: "IFF HANDSHAKE FAILED. SECURING TERMINAL." 00352_ ALERT: Hostiles spotted, dispatching reinforcements to Terminal M005. 00359_ T-07 Excavator is excavating. 00359_ Slammed into K-01 Serf. 00361_ Crushed K-01 Serf. 00361_ K-01 Serf destroyed. 00362_ Acquired 9 matter. 00364_ K-01 Serf cleans the Terminal. 00365_ Imp. Terrain Scanner destroyed. Map ----- +----------------------------------------------------+ | ?????????????????????????????????????????????????? | | ?????????????????????????????????????????????????? | | ?????????????????????????????????????????????????? | | ?????????????????????????????????????????????????? | | ?????????????????????????????????????????????????? | | ?????????????????????????????????????????????????? | | ?????????????????????????????????????????????????? | | ?????????????????????????????????????????????????? | | ?????????????????????????????????????????????????? | | ?????????????????????????????????????????????????? | | ??????????????????????????? ?????????????????????? | | ??????????????#??????????? ????????????????????? | | ?????????? ??????????????? !????????????????????? | | ?????????????????????????? ?????????????????????? | | ?????????????????????????? ?????????????????????? | | ?????????#???????????????? ?????????????????????? | | ????????????????????????? ????????? ???????????? | | ??????????? ?????????????? ???????? ???????????? | | ????????????????"???????##/#####+## ??????????? | | ???????#??????????#?????# g ??????????? | | ????????????"???????????# ??????????? | | ???#????????????????????# k" "??????????? | | ??????#?????????????????# bT "??????????? | | ???????????????????#?#??# " !! ""?????????? | | ????????#?###+###?##????# ! ????????? | | ####### #########@ ????????? | | = k ????????? | | ###############+######???????????? | | ##???????????? ??????????????????? | | ### ### #????????????????????????????????? | | ??????????## ##?#???????????? ?????????????????? | | ?? ????#??# #??#??????????????????????????????? | | ???#?????# #??????????#??????????????????????? | | ??? ???????# ##??????????? ????????????????????? | | ???"???????# #???##????#???????????????????????? | | ???????????# #??#??#???#??? ???????????????????? | | ???????????# #?????????#???????????????????????? | | ??""??#????# ##????????????????????????????????? | | ??""??????## #??????##?????????????????????????? | | ???????????# #????#?#??????????????????????????? | | ????????#??# #????????#????????????????????????? | | ?????????#?# ##????????????????????????????????? | | ???????????# #?##??????????????????????????????? | | ??????#???## ##????????????????????????????????? | | ########### #????????????????????????????????? | | k #????????????????????????????????? | | #????????????????????????????????? | | #????????????????????????????????? | | #######/### #????????????????????????????????? | | ? ??? ? #######????? ??????????????????????????? | +----------------------------------------------------+ Best States ------------- Heat Dissipation 28 Energy Generation 10 Energy Capacity 125 Matter Stores 300 Matter Capacity 300 Sight Range 16 Terrain Scan Range 16 Terrain Scan Density 60 Evasion (%) 54 Recoil Reduction 2 Item Schematics ----------------- None Robot Schematics ------------------ None Fabricated ------------ Nothing Alien Tech Used ----------------- None Achievements -------------- None Challenges ------------ None Game ------ Seed DroneFieldFrame Manual? 0 Play Time 00:08:07 Cumulative 1858.6 hours Start 2021.01.08 @ 12:51:07 End 2021.01.08 @ 12:56:18 Sessions 1 Manual Loads 0 Difficulty Rogue Special Mode None Game No. 2532 Rogue 2524 Adventurer 0 Explorer 8 Win Type - Total 192 Types 41/26/74/3/3/5/37/2/1 Lore% 100 Gallery% 99 Achievement% 100 Wizard Run 0 Options --------- ASCII 0 Keyboard 1 Movement Numpad Keybinds 1 Fullscreen 1 Font 18/SmallcapsGlow Map View 76x50 Tactical HUD 1 Map Filters NONE Filters NONE Steam 1 RUN: 7ad8378c-4691-4edf-95ca-2c945c1bd122